fUSD/lending_fUSD_20241207
["ID","MTS","AMOUNT","RATE_DAILY","PERIOD"]
[344537933,1733537494011,-630.75,0.00012599,2]
[344537934,1733537494021,-958.27,0.00012599,2]
[344537935,1733537494030,-500.0,0.00012599,2]
[344537936,1733537494041,-1099.36,0.00012599,2]
[344537937,1733537494050,-500.0,0.00012599,2]
[344537938,1733537494060,-1285.82,0.00012599,2]
[344537939,1733537494069,-1464.66,0.00012599,2]
[344537940,1733537494079,-543.96977712,0.00012599,2]
[344537941,1733537494089,-500.0,0.00012599,2]
[344537942,1733537494098,-500.0,0.00012599,2]
[344537943,1733537494108,-500.0,0.00012599,2]
[344537944,1733537494117,-1119.59,0.00012599,2]
[344537945,1733537494127,-500.0,0.00012599,2]
[344537946,1733537494138,-794.33,0.00012599,2]
[344537947,1733537494150,-252.17676387,0.00012599,2]
[344537948,1733537494160,-569.48,0.00012599,2]
[344537949,1733537494170,-500.0,0.00012599,2]
[344537950,1733537494180,-500.0,0.00012599,2]
[344537951,1733537494192,-940.67,0.00012599,2]
[344537952,1733537494202,-584.26,0.00012599,2]
[344537953,1733537494212,-1198.88,0.00012599,2]
[344537954,1733537494222,-607.45,0.00012599,2]
[344537955,1733537494231,-500.0,0.00012599,2]
[344537956,1733537494243,-500.0,0.00012599,2]
[344537957,1733537494253,-500.0,0.00012599,2]
[344537958,1733537494263,-983.98,0.00012599,2]
[344537959,1733537494273,-500.0,0.00012599,2]
[344537960,1733537494283,-679.16,0.00012599,2]
[344537961,1733537494294,-1075.79,0.00012599,2]
[344537962,1733537494304,-500.0,0.00012599,2]
[344537963,1733537494314,-733.78,0.00012599,2]
[344537964,1733537494324,-592.95,0.00012599,2]
[344537965,1733537494334,-1043.19,0.00012599,2]
[344537966,1733537494343,-588.58,0.00012599,2]
[344537967,1733537494356,-581.87,0.00012599,2]
[344537968,1733537494367,-500.0,0.00012599,2]
[344537969,1733537494377,-835.12,0.00012599,2]
[344537970,1733537494386,-530.69,0.00012599,2]
[344537971,1733537494400,-544.29,0.00012599,2]
[344537972,1733537494411,-500.0,0.000126,2]
[344537973,1733537494420,-456.255797,0.000126,2]
[344537974,1733537494430,-456.255797,0.000126,2]
[344537975,1733537494441,-757.257231,0.000126,2]
[344537976,1733537494450,-757.257231,0.000126,2]
[344537977,1733537494459,-500.0,0.000126,2]
[344537978,1733537494469,-500.0,0.000126,2]
[344537979,1733537494478,-500.0,0.000126,2]
[344537980,1733537494487,-500.0,0.000126,2]
[344537981,1733537494496,-500.0,0.000126,2]
[344537982,1733537494506,-500.0,0.000126,2]
[344537983,1733537494516,-500.0,0.000126,2]
[344537984,1733537494525,-500.0,0.000126,2]
[344537985,1733537494536,-500.0,0.000126,2]
[344537986,1733537494545,-500.0,0.000126,2]
[344537987,1733537494555,-500.0,0.000126,2]
[344537988,1733537494564,-500.0,0.000126,2]
[344537989,1733537494573,-500.0,0.000126,2]
[344537990,1733537494583,-500.0,0.000126,2]
[344537991,1733537494592,-500.0,0.000126,4]
[344537992,1733537494602,-13870.93898179,0.00012612,2]
[344537993,1733537494612,-4651.0,0.00012663,2]
[344537994,1733537494622,-1056.0,0.00012668,2]
[344537995,1733537494631,-214.52413707,0.0001268,2]
[344537996,1733537494641,-1000.0,0.00012698,2]
[344537997,1733537494650,-1000.0,0.00012698,3]
[344537998,1733537494659,-1000.0,0.00012698,3]
[344537999,1733537494668,-500.0,0.000127,4]
[344538000,1733537494677,-500.0,0.00012735,2]
[344538001,1733537494686,-427.93892509,0.00012749,2]
[344538002,1733537494696,-1000.0,0.00012752,2]
[344538003,1733537494706,-576.42412563,0.00012772,2]
[344538004,1733537494715,-52289.5418,0.00012773,2]
[344538005,1733537494725,-151.0,0.00012773,2]
[344538006,1733537494735,-151.0,0.00012773,2]
[344538007,1733537494744,-151.0,0.00012773,2]
[344538008,1733537494754,-10044.6416558,0.00012777,2]
[344538009,1733537494763,-500.0,0.000128,4]
[344538010,1733537494773,-164.96,0.00012864,2]
[344538011,1733537494782,-21788.47274189,0.0001287,2]
[344538012,1733537494791,-1050.3,0.00012871,2]
[344538013,1733537494801,-500.0,0.00012871,2]
[344538014,1733537494810,-1597.53,0.00012871,2]
[344538015,1733537494820,-1400.57,0.00012871,2]
[344538016,1733537494829,-365.302161,0.00012871,2]
[344538017,1733537494839,-548.55,0.00012871,2]
[344538018,1733537494848,-1766.81,0.00012871,2]
[344538019,1733537494858,-6143.12,0.00012871,2]
[344538020,1733537494868,-1488.72,0.00012871,2]
[344538021,1733537494878,-832.22,0.00012871,2]
[344538022,1733537494887,-525.94,0.00012871,2]
[344538023,1733537494896,-881.78,0.00012871,2]
[344538024,1733537494908,-1317.97,0.00012871,2]
[344538025,1733537494917,-500.0,0.00012871,2]
[344538026,1733537494926,-1288.04,0.00012871,2]
[344538027,1733537494935,-500.0,0.00012871,2]
[344538028,1733537494945,-545.05,0.00012871,2]
[344538029,1733537494954,-1581.01,0.00012871,2]
[344538030,1733537494963,-1641.76,0.00012871,2]
[344538031,1733537494973,-721.09,0.00012871,2]
[344538032,1733537494982,-835.39,0.00012871,2]
[344538033,1733537494992,-2710.58,0.00012871,2]
[344538034,1733537495001,-500.0,0.00012871,2]
[344538035,1733537495010,-1386.68,0.00012871,2]
[344538036,1733537495020,-8757.87,0.00012871,2]
[344538037,1733537495029,-500.0,0.00012871,2]
[344538038,1733537495038,-3403.53,0.00012871,2]
[344538039,1733537495047,-2678.48,0.00012871,2]
[344538040,1733537495057,-936.22,0.00012871,2]
[344538041,1733537495066,-876.67,0.00012871,2]
[344538042,1733537495076,-500.0,0.00012871,2]
[344538043,1733537495086,-4610.02,0.00012871,2]
[344538044,1733537495096,-500.0,0.00012871,2]
[344538045,1733537495105,-1590.58,0.00012871,2]
[344538046,1733537495115,-571.55,0.00012871,2]
[344538047,1733537495124,-1388.66,0.00012871,2]
[344538048,1733537495133,-500.0,0.00012871,2]
[344538049,1733537495143,-811.95,0.00012871,2]
[344538050,1733537495155,-9896.25,0.00012871,2]
[344538051,1733537495164,-500.0,0.00012871,2]
[344538052,1733537495173,-1248.83,0.00012871,2]
[344538053,1733537495183,-500.0,0.00012871,2]
[344538054,1733537495192,-945.51,0.00012871,2]
[344538055,1733537495202,-8439.08,0.00012871,2]
[344538056,1733537495211,-500.0,0.00012871,2]
[344538057,1733537495220,-2764.02,0.00012871,2]
[344538058,1733537495229,-1408.69,0.00012871,2]
[344538059,1733537495237,-1121.13,0.00012871,2]
[344538060,1733537495247,-1072.4,0.00012871,2]
[344538061,1733537495257,-225955.85341767,0.00012872,2]
[344538062,1733537495266,-19273.39854647,0.00012872,2]
[344538063,1733537495275,-500.0,0.00012872,2]
[344538064,1733537495285,-1140.1,0.00012872,2]
[344538065,1733537495294,-1462.62,0.00012872,2]
[344538066,1733537495303,-2115.81,0.00012872,2]
[344538067,1733537495313,-1415.45,0.00012872,2]
[344538068,1733537495322,-500.0,0.00012872,2]
[344538069,1733537495332,-500.0,0.00012872,2]
[344538070,1733537495341,-500.0,0.00012872,2]
[344538071,1733537495353,-609.04,0.00012872,2]
[344538072,1733537495362,-819.45,0.00012872,2]
[344538073,1733537495371,-1046.78,0.00012872,2]
[344538074,1733537495380,-950.43,0.00012872,2]
[344538075,1733537495391,-500.0,0.00012872,2]
[344538076,1733537495404,-500.0,0.00012872,2]
[344538077,1733537495413,-804.93,0.00012872,2]
[344538078,1733537495423,-500.0,0.00012872,2]
[344538079,1733537495434,-1117.46,0.00012872,2]
[344538080,1733537495443,-721.67,0.00012872,2]
[344538081,1733537495452,-563.82,0.00012872,2]
[344538082,1733537495461,-890.81,0.00012872,2]
[344538083,1733537495470,-500.0,0.00012872,2]
[344538084,1733537495479,-500.0,0.00012872,2]
[344538085,1733537495488,-500.0,0.00012872,2]
[344538086,1733537495498,-773.09,0.00012872,2]
[344538087,1733537495507,-611.78,0.00012872,2]
[344538088,1733537495516,-708.34,0.00012872,2]
[344538089,1733537495525,-1172.09,0.00012872,2]
[344538090,1733537495534,-1122.04,0.00012872,2]
[344538091,1733537495543,-536.64,0.00012872,2]
[344538092,1733537495553,-1195.36,0.00012872,2]
[344538093,1733537495562,-1204.41,0.00012872,2]
[344538094,1733537495571,-500.0,0.00012872,2]
[344538095,1733537495580,-1277.16,0.00012872,2]
[344538096,1733537495590,-723.36,0.00012872,2]
[344538097,1733537495599,-1141.67,0.00012872,2]
[344538098,1733537495609,-500.0,0.00012872,2]
[344538099,1733537495619,-626.89,0.00012872,2]
[344538100,1733537495628,-561.29,0.00012872,2]
[344538101,1733537495639,-952.18,0.00012872,2]
[344538102,1733537495655,-940.5,0.00012872,2]
[344538103,1733537495666,-867.31,0.00012872,2]
[344538104,1733537495676,-841.91,0.00012872,2]
[344538105,1733537495686,-500.0,0.00012872,2]
[344538106,1733537495696,-500.0,0.00012872,2]
[344538107,1733537495706,-598.02,0.00012872,2]
[344538108,1733537495717,-500.0,0.00012872,2]
[344538109,1733537495727,-519.16,0.00012872,2]
[344538110,1733537495737,-1077.49,0.00012872,2]
[344538111,1733537495746,-500.0,0.00012872,2]
[344538112,1733537495756,-503.35,0.00012872,2]
[344538113,1733537495766,-500.0,0.00012872,2]
[344538114,1733537495776,-963.09,0.00012872,2]
[344538115,1733537495786,-1121.84,0.00012872,2]
[344538116,1733537495796,-625.34,0.00012872,2]
[344538117,1733537495806,-705.73,0.00012872,2]
[344538118,1733537495816,-500.0,0.00012872,2]
[344538119,1733537495825,-576.6,0.00012872,2]
[344538120,1733537495834,-500.0,0.00012872,2]
[344538121,1733537495844,-332.78704623,0.00012872,2]
[344538122,1733537495854,-500.0,0.00012872,2]
[344538123,1733537495863,-500.0,0.00012872,2]
[344538124,1733537495872,-515.19,0.00012872,2]
[344538125,1733537495882,-660.5,0.00012872,2]
[344538126,1733537495892,-500.0,0.00012872,2]
[344538127,1733537495909,-892.96,0.00012872,2]
[344538128,1733537495919,-567.63,0.00012872,2]
[344538129,1733537495931,-1345.19,0.00012872,2]
[344538130,1733537495942,-712.16,0.00012872,2]
[344538131,1733537495951,-500.0,0.00012872,2]
[344538132,1733537495961,-500.0,0.00012872,2]
[344538133,1733537495971,-870.39,0.00012872,2]
[344538134,1733537495981,-500.0,0.00012872,2]
[344538135,1733537495990,-820.34,0.00012872,2]
[344538136,1733537495999,-588.07,0.00012872,2]
[344538137,1733537496009,-820.76,0.00012872,2]
[344538138,1733537496019,-854.13,0.00012872,2]
[344538139,1733537496029,-500.0,0.00012872,2]
[344538140,1733537496038,-550.88,0.00012872,2]
[344538141,1733537496261,-500.0,0.00012872,2]
[344538142,1733537496272,-1181.78,0.00012872,2]
[344538143,1733537496282,-778.07,0.00012872,2]
[344538144,1733537496292,-500.0,0.00012872,2]
[344538145,1733537496302,-582.48,0.00012872,2]
[344538146,1733537496312,-2295.52,0.00012872,2]
[344538147,1733537496322,-829.82,0.00012872,2]
[344538148,1733537496331,-794.15,0.00012872,2]
[344538149,1733537496341,-799.05,0.00012872,2]
[344538150,1733537496351,-500.0,0.00012872,2]
[344538151,1733537496365,-500.0,0.00012872,2]
[344538152,1733537496375,-724.21,0.00012872,2]
[344538153,1733537496385,-278.02210472,0.00012872,2]
[344538154,1733537496395,-664.86,0.00012872,2]
[344538155,1733537496408,-989.21,0.00012872,2]
[344538156,1733537496417,-849.12,0.00012872,2]
[344538157,1733537496427,-500.0,0.00012872,2]
[344538158,1733537496438,-500.0,0.00012872,2]
[344538159,1733537496448,-509.57,0.00012872,2]
[344538160,1733537496457,-713.01,0.00012872,2]
[344538161,1733537496466,-679.55,0.00012872,2]
[344538162,1733537496476,-560.76,0.00012872,2]
[344538163,1733537496485,-1346.56,0.00012872,2]
[344538164,1733537496494,-989.19,0.00012872,2]
[344538165,1733537496504,-1211.19,0.00012872,2]
[344538166,1733537496514,-1833.64,0.00012872,2]
[344538167,1733537496524,-500.0,0.00012872,2]
[344538168,1733537496534,-500.0,0.00012872,2]
[344538169,1733537496543,-602.459984,0.00012872,2]
[344538170,1733537496554,-589.26,0.00012872,2]
[344538171,1733537496563,-500.0,0.00012872,2]
[344538172,1733537496572,-602.459984,0.00012872,2]
[344538173,1733537496581,-500.0,0.00012872,2]
[344538174,1733537496591,-921.57,0.00012872,2]
[344538175,1733537496601,-1281.93,0.00012872,2]
[344538176,1733537496611,-736.24,0.00012872,2]
[344538177,1733537496620,-500.0,0.00012872,2]
[344538178,1733537496630,-500.0,0.00012872,2]
[344538179,1733537496639,-529.97,0.00012872,2]
[344538180,1733537496651,-594.40248986,0.00012872,2]
[344538181,1733537496660,-780.19,0.00012872,2]
[344538182,1733537496670,-655.95,0.00012872,2]
[344538183,1733537496680,-911.08,0.00012872,2]
[344538184,1733537496690,-530.43,0.00012872,2]
[344538185,1733537496700,-873.22,0.00012872,2]
[344538186,1733537496709,-1140.22,0.00012872,2]
[344538187,1733537496719,-627.08,0.00012872,2]
[344538188,1733537496729,-643.92,0.00012872,2]
[344538189,1733537496739,-2433.75,0.00012872,2]
[344538190,1733537496749,-1430.18,0.00012872,2]
[344538191,1733537496759,-1255.757019,0.00012872,2]
[344538192,1733537496769,-500.0,0.00012872,2]
[344538193,1733537496778,-782.99,0.00012872,2]
[344538194,1733537496788,-2284.01,0.00012872,2]
[344538195,1733537496798,-780.92,0.00012872,2]
[344538196,1733537496808,-500.0,0.00012872,2]
[344538197,1733537496818,-1255.757019,0.00012872,2]
[344538198,1733537496827,-509.76,0.00012872,2]
[344538199,1733537496837,-693.87,0.00012872,2]
[344538200,1733537496847,-831.52,0.00012872,2]
[344538201,1733537496857,-156.004182,0.00012872,2]
[344538202,1733537496867,-500.0,0.00012872,2]
[344538203,1733537496877,-714.59,0.00012872,2]
[344538204,1733537496886,-156.004182,0.00012872,2]
[344538205,1733537496896,-1380.02,0.00012872,2]
[344538206,1733537496908,-823.48,0.00012872,2]
[344538207,1733537496918,-893.2,0.00012872,2]
[344538208,1733537496928,-814.35,0.00012872,2]
[344538209,1733537496938,-1734.35,0.00012872,2]
[344538210,1733537496947,-500.0,0.00012872,2]
[344538211,1733537496957,-3768.03,0.00012872,2]
[344538212,1733537496967,-582.08,0.00012872,2]
[344538213,1733537496977,-830.35,0.00012872,2]
[344538214,1733537496986,-975.77,0.00012872,2]
[344538215,1733537496996,-500.0,0.00012872,2]
[344538216,1733537497005,-7359.0,0.00012872,2]
[344538217,1733537497015,-3459.63,0.00012872,2]
[344538218,1733537497024,-500.0,0.00012872,2]
[344538219,1733537497034,-769.9,0.00012872,2]
[344538220,1733537497043,-248.6791139,0.00012872,2]
[344538221,1733537497053,-500.0,0.00012872,2]
[344538222,1733537497062,-1346.14,0.00012872,2]
[344538223,1733537497072,-964.1,0.00012872,2]
[344538224,1733537497081,-1060.98,0.00012872,2]
[344538225,1733537497091,-2194.59,0.00012872,2]
[344538226,1733537497101,-1828.43,0.00012872,2]
[344538227,1733537497110,-1200.0,0.00012872,2]
[344538228,1733537497120,-500.0,0.00012872,2]
[344538229,1733537497129,-500.0,0.00012872,2]
[344538230,1733537497139,-500.0,0.00012872,2]
[344538231,1733537497150,-535.97,0.00012872,2]
[344538232,1733537497160,-500.0,0.00012872,2]
[344538233,1733537497170,-10224.43,0.00012872,2]
[344538234,1733537497179,-564.88,0.00012872,2]
[344538235,1733537497189,-848.28,0.00012872,2]
[344538236,1733537497198,-2147.92,0.00012872,2]
[344538237,1733537497209,-2112.65,0.00012872,2]
[344538238,1733537497219,-967.65,0.00012872,2]
[344538239,1733537497228,-500.0,0.00012872,2]
[344538240,1733537497238,-674.48,0.00012872,2]
[344538241,1733537497247,-2046.48,0.00012872,2]
[344538242,1733537497257,-1371.16,0.00012872,2]
[344538243,1733537497267,-1082.33,0.00012872,2]
[344538244,1733537497278,-837.66,0.00012872,2]
[344538245,1733537497287,-9124.76,0.00012872,2]
[344538246,1733537497297,-567.79,0.00012872,2]
[344538247,1733537497307,-679.51,0.00012872,2]
[344538248,1733537497317,-500.0,0.00012872,2]
[344538249,1733537497326,-1047.21,0.00012872,2]
[344538250,1733537497336,-500.0,0.00012872,2]
[344538251,1733537497345,-621.96,0.00012872,2]
[344538252,1733537497358,-10000.0,0.00012872,2]
[344538253,1733537497368,-500.0,0.00012872,2]
[344538254,1733537497377,-500.0,0.00012872,2]
[344538255,1733537497386,-1080.14,0.00012872,2]
[344538256,1733537497397,-500.0,0.00012872,2]
[344538257,1733537497407,-10000.0,0.00012872,2]
[344538258,1733537497416,-628.02,0.00012872,2]
[344538259,1733537497428,-500.0,0.00012872,2]
[344538260,1733537497437,-10000.0,0.00012872,2]
[344538261,1733537497447,-1351.25,0.00012872,2]
[344538262,1733537497456,-662.042942,0.00012872,2]
[344538263,1733537497466,-1754.98,0.00012872,2]
[344538264,1733537497475,-5506.2,0.00012872,2]
[344538265,1733537497484,-3200.75,0.00012872,2]
[344538266,1733537497493,-536.93,0.00012872,2]
[344538267,1733537497502,-10000.0,0.00012872,2]
[344538268,1733537497512,-662.042942,0.00012872,2]
[344538269,1733537497522,-10000.0,0.00012872,2]
[344538270,1733537497531,-500.0,0.00012872,2]
[344538271,1733537497541,-1297.69,0.00012872,2]
[344538272,1733537497550,-10000.0,0.00012872,2]
[344538273,1733537497560,-500.0,0.00012872,2]
[344538274,1733537497569,-1217.46,0.00012872,2]
[344538275,1733537497579,-500.0,0.00012872,2]
[344538276,1733537497588,-1520.75,0.00012872,2]
[344538277,1733537497597,-500.0,0.00012872,2]
[344538278,1733537497606,-5161.49,0.00012872,2]
[344538279,1733537497615,-525.72,0.00012872,2]
[344538280,1733537497624,-500.0,0.00012872,2]
[344538281,1733537497634,-4752.83,0.00012872,2]
[344538282,1733537497643,-500.0,0.00012872,2]
[344538283,1733537497654,-579.7,0.00012872,2]
[344538284,1733537497663,-1013.93,0.00012872,2]
[344538285,1733537497672,-500.0,0.00012872,2]
[344538286,1733537497681,-500.0,0.00012872,2]
[344538287,1733537497690,-500.0,0.00012872,2]
[344538288,1733537497699,-980.16,0.00012872,2]
[344538289,1733537497709,-1478.17,0.00012872,2]
[344538290,1733537497718,-2253.52,0.00012872,2]
[344538291,1733537497727,-529.93,0.00012872,2]
[344538292,1733537497736,-589.51,0.00012872,2]
[344538293,1733537497745,-846.32,0.00012872,2]
[344538294,1733537497755,-634.76,0.00012872,2]
[344538295,1733537497764,-1592.53,0.00012872,2]
[344538296,1733537497773,-500.0,0.00012872,2]
[344538297,1733537497782,-500.0,0.00012872,2]
[344538298,1733537497792,-151.0,0.00012872,2]
[344538299,1733537497801,-806.38,0.00012872,2]
[344538300,1733537497811,-151.0,0.00012872,2]
[344538301,1733537497820,-987.46,0.00012872,2]
[344538302,1733537497829,-500.0,0.00012872,2]
[344538303,1733537497838,-678.97,0.00012872,2]
[344538304,1733537497847,-527.38,0.00012872,2]
[344538305,1733537497857,-151.0,0.00012872,2]
[344538306,1733537497866,-500.0,0.00012872,2]
[344538307,1733537497876,-151.0,0.00012872,2]
[344538308,1733537497885,-845.26,0.00012872,2]
[344538309,1733537497894,-618.23,0.00012872,2]
[344538310,1733537497906,-718.78,0.00012872,2]
[344538311,1733537497915,-151.0,0.00012872,2]
[344538312,1733537497924,-151.0,0.00012872,2]
[344538313,1733537497933,-500.0,0.00012872,2]
[344538314,1733537497942,-500.0,0.00012872,2]
[344538315,1733537497952,-500.0,0.00012872,2]
[344538316,1733537497961,-500.0,0.00012872,2]
[344538317,1733537497971,-700.38,0.00012872,2]
[344538318,1733537497980,-2142.56,0.00012872,2]
[344538319,1733537497990,-500.0,0.00012872,2]
[344538320,1733537498000,-480.352485,0.00012872,2]
[344538321,1733537498009,-151.0,0.00012872,2]
[344538322,1733537498019,-480.352485,0.00012872,2]
[344538323,1733537498028,-1006.68,0.00012872,2]
[344538324,1733537498038,-500.0,0.00012872,2]
[344538325,1733537498047,-500.0,0.00012872,2]
[344538326,1733537498057,-601.72,0.00012872,2]
[344538327,1733537498067,-810.93,0.00012872,2]
[344538328,1733537498077,-500.0,0.00012872,2]
[344538329,1733537498086,-500.0,0.00012872,2]
[344538330,1733537498096,-2711.3,0.00012872,2]
[344538331,1733537498105,-1456.41,0.00012872,2]
[344538332,1733537498115,-552.66,0.00012872,2]
[344538333,1733537498125,-1264.39,0.00012872,2]
[344538334,1733537498135,-742.7,0.00012872,2]
[344538335,1733537498144,-500.0,0.00012872,2]
[344538336,1733537498156,-500.0,0.00012872,2]
[344538337,1733537498166,-508.32850287,0.00012872,2]
[344538338,1733537498175,-500.0,0.00012872,2]
[344538339,1733537498184,-151.0,0.00012872,2]
[344538340,1733537498193,-1614.85,0.00012872,2]
[344538341,1733537498202,-500.0,0.00012873,2]
[344538342,1733537498212,-500.0,0.00012873,2]
[344538343,1733537498221,-935.29,0.00012873,2]
[344538344,1733537498230,-507.32,0.00012873,2]
[344538345,1733537498239,-537.37,0.00012873,2]
[344538346,1733537498251,-267.8109837,0.00012873,2]
[344538347,1733537498260,-500.0,0.00012873,2]
[344538348,1733537498270,-500.0,0.00012873,2]
[344538349,1733537498279,-500.0,0.00012873,2]
[344538350,1733537498288,-1039.25,0.00012873,2]
[344538351,1733537498297,-934.3,0.00012873,2]
[344538352,1733537498306,-706.31,0.00012873,2]
[344538353,1733537498315,-500.0,0.00012873,2]
[344538354,1733537498324,-1575.02,0.00012873,2]
[344538355,1733537498334,-974.48,0.00012873,2]
[344538356,1733537498343,-646.994197,0.00012873,2]
[344538357,1733537498353,-500.0,0.00012873,2]
[344538358,1733537498365,-708.15354,0.00012873,2]
[344538359,1733537498374,-594.53,0.00012873,2]
[344538360,1733537498384,-708.15354,0.00012873,2]
[344538361,1733537498393,-500.0,0.00012873,2]
[344538362,1733537498407,-500.0,0.00012873,2]
[344538363,1733537498416,-489.710296,0.00012873,2]
[344538364,1733537498425,-489.710296,0.00012873,2]
[344538365,1733537498438,-594.543513,0.00012873,2]
[344538366,1733537498447,-594.543513,0.00012873,2]
[344538367,1733537498456,-627.658858,0.00012873,2]
[344538368,1733537498466,-627.658858,0.00012873,2]
[344538369,1733537498476,-500.0,0.00012873,2]
[344538370,1733537498485,-151.0,0.00012873,2]
[344538371,1733537498495,-151.0,0.00012873,2]
[344538372,1733537498504,-500.0,0.00012873,2]
[344538373,1733537498514,-500.0,0.00012873,2]
[344538374,1733537498524,-471.808494,0.00012873,2]
[344538375,1733537498534,-500.0,0.00012873,2]
[344538376,1733537498543,-471.808494,0.00012873,2]
[344538377,1733537498554,-500.0,0.00012873,2]
[344538378,1733537498563,-500.0,0.00012873,2]
[344538379,1733537498572,-635.22406386,0.00012873,2]
[344538380,1733537498581,-500.0,0.00012873,2]
[344538381,1733537498590,-500.0,0.00012873,2]
[344538382,1733537498600,-648.49,0.00012873,2]
[344538383,1733537498609,-500.0,0.00012873,2]
[344538384,1733537498618,-500.0,0.00012873,2]
[344538385,1733537498627,-500.0,0.00012873,2]
[344538386,1733537498637,-500.0,0.00012873,2]
[344538387,1733537498646,-672.69,0.00012873,2]
[344538388,1733537498658,-500.0,0.00012873,2]
[344538389,1733537498667,-523.55,0.00012873,2]
[344538390,1733537498676,-500.0,0.00012873,2]
[344538391,1733537498685,-734.69,0.00012873,2]
[344538392,1733537498694,-500.0,0.00012873,2]
[344538393,1733537498703,-500.0,0.00012873,2]
[344538394,1733537498713,-574.62,0.00012873,2]
[344538395,1733537498722,-507.11,0.00012873,2]
[344538396,1733537498731,-561.87,0.00012873,2]
[344538397,1733537498740,-630.75,0.00012873,2]
[344538398,1733537498749,-958.27,0.00012873,2]
[344538399,1733537498758,-500.0,0.00012873,2]
[344538400,1733537498767,-1099.36,0.00012873,2]
[344538401,1733537498776,-500.0,0.00012873,2]
[344538402,1733537498786,-1285.82,0.00012873,2]
[344538403,1733537498795,-1464.66,0.00012873,2]
[344538404,1733537498804,-500.0,0.00012873,2]
[344538405,1733537498813,-500.0,0.00012873,2]
[344538406,1733537498822,-500.0,0.00012873,2]
[344538407,1733537498832,-1119.59,0.00012873,2]
[344538408,1733537498841,-500.0,0.00012873,2]
[344538409,1733537498850,-794.33,0.00012873,2]
[344538410,1733537498859,-569.48,0.00012873,2]
[344538411,1733537498868,-500.0,0.00012873,2]
[344538412,1733537498878,-500.0,0.00012873,2]
[344538413,1733537498887,-940.67,0.00012873,2]
[344538414,1733537498896,-584.26,0.00012873,2]
[344538415,1733537498908,-1198.88,0.00012873,2]
[344538416,1733537498918,-607.45,0.00012873,2]
[344538417,1733537498927,-500.0,0.00012873,2]
[344538418,1733537498936,-500.0,0.00012873,2]
[344538419,1733537498946,-500.0,0.00012873,2]
[344538420,1733537498955,-983.98,0.00012873,2]
[344538421,1733537498965,-500.0,0.00012873,2]
[344538422,1733537498974,-679.16,0.00012873,2]
[344538423,1733537498984,-1075.79,0.00012873,2]
[344538424,1733537498993,-500.0,0.00012873,2]
[344538425,1733537499002,-733.78,0.00012873,2]
[344538426,1733537499012,-592.95,0.00012873,2]
[344538427,1733537499022,-1043.19,0.00012873,2]
[344538428,1733537499031,-588.58,0.00012873,2]
[344538429,1733537499040,-2226.238167,0.00012873,2]
[344538430,1733537499049,-2190.571716,0.00012873,2]
[344538431,1733537499059,-581.87,0.00012873,2]
[344538432,1733537499068,-2190.571716,0.00012873,2]